Cogmind - Beta 14 @@@ ROGUE MODE // 2025.01.11 @ 15:45:39 Player: Andru7428 Result: Self-destructed Performance ------------- Evolutions (7) 3500 Regions Visited (24) 4800 Robots Destroyed (292) 1460 Value Destroyed (12247) 12247 Prototype IDs (49) 980 Alien Tech Used (1) 200 Bonus (5323) 5323 TOTAL SCORE: 28510 Bonus ------- High Alert Combat Kills 2082 Follower Combat Kills 2211 Network Hubs Disabled 200 Met Data Miner 300 Met Zhirov 300 Built Enhanced Grunts 300 Friendly Fire -70 Cogmind --------- Core Integrity 225/1300 Matter 300/300 Energy 500/500 System Corruption 26% Temperature Cool (0) Movement Core (500) Ox9 Location -3/Research Parts ------- > --- POWER (2) -------- (None) > --- PROPULSION (5) --- (None) > --- UTILITY (11) ----- Advanced Heat Sink Large Storage Unit Improved Energy Well Advanced Signal Interpreter Graphene Brace Advanced Hacking Suite > --- WEAPON (3) ------- Heavy Pick > --- INVENTORY (15) --- Large Storage Unit Advanced Hacking Suite Authchip [Device] Transdimensional Reconstructor Advanced Plasma Cannon Mini Smartbomb Launcher Neutron Missile Launcher Advanced Datajack Peak State ------------ > --- POWER ------------ Light Antimatter Reactor Quantum Reactor > --- PROPULSION ------- Myomer Leg Advanced VSS Leg Advanced VSS Leg Advanced VSS Leg Advanced VSS Leg > --- UTILITY ---------- Large Storage Unit Advanced Signal Interpreter Improved Armor Integrity Analyzer Improved Actuator Array Makeshift Transmission Jammer Hardened Medium Armor Plating Centrium Medium Armor Plating Advanced Shield Generator Advanced Hacking Suite Advanced Hacking Suite Advanced System Shield > --- WEAPON ----------- Great Maul Makeshift Sword Kinetic Spear > --- INVENTORY -------- Particle Reactor Advanced Myomer Leg Advanced Myomer Leg Advanced Myomer Leg Advanced Sensor Array Advanced Particle Charger Authchip [Device] Transdimensional Reconstructor Advanced Plasma Cannon Powered Cannon Mini Smartbomb Launcher Neutron Missile Launcher Advanced Datajack Lance [Rating: 135] Favorites ----------- Power Enhanced Nuclear Core Engine Ion Engine Power Core Enhanced Nuclear Core Reactor Quantum Reactor Propulsion Armored Leg Treads Light Treads Leg Armored Leg Wheel Wheel Utility Large Storage Unit Device Improved Sensor Array Storage Large Storage Unit Processor Advanced Signal Interpreter Hackware Advanced Hacking Suite Protection Improved Medium Armor Plating Weapon Power Maul Energy Gun EM Shotgun Energy Cannon Advanced Plasma Cannon Ballistic Gun Autogun Ballistic Cannon Light Cannon Launcher Thermoblaster Impact Weapon Power Maul Slashing Weapon Phasing Sabre Piercing Weapon Kinetic Spear Build | -11 -10 -10 -8 -7 -7 -7 -7 -6 -6 -6 -6 -6 -5 -5 -5 -5 -5 -5 -4 -4 -4 -4 -3 -3 ------- Run | Yrd Mat Sub Mat Fac Low Low Zio Pro Fac Low Low Dat Pro Fac Ext Cet Arc Hub Fac Upp Upp Zhi Pro Res Slots Evolved 14 | . . . 4 2 . . . . 2 . . . . 2 . . . . 2 . . . . 2 Power 1 | . . . . . . . . . . . . . . . . . . . . . . . . 1 Propulsion 3 | . . . 1 1 . . . . . . . . . 1 . . . . . . . . . . Utility 9 | . . . 2 1 . . . . 2 . . . . 1 . . . . 2 . . . . 1 Weapon 1 | . . . 1 . . . . . . . . . . . . . . . . . . . . . Parts Attached 411 | 8 12 16 27 33 1 1 10 16 56 1 2 . 2 60 38 4 8 . 55 2 8 13 1 37 Power 24 | 1 . 1 2 1 . . . 1 5 . . . . 4 1 . 1 . 1 . . . . 6 Engine 6 | 1 . 1 2 . . . . . . . . . . 1 1 . . . . . . . . . Core 10 | . . . . 1 . . . 1 5 . . . . 3 . . . . . . . . . . Reactor 8 | . . . . . . . . . . . . . . . . . 1 . 1 . . . . 6 Propulsion 79 | 2 1 6 9 4 . 1 . 6 8 . . . . 8 11 1 . . 10 . 1 3 . 8 Treads 8 | 2 1 4 1 . . . . . . . . . . . . . . . . . . . . . Leg 70 | . . 1 8 4 . 1 . 6 8 . . . . 8 11 1 . . 10 . 1 3 . 8 Wheel 1 | . . 1 . . . . . . . . . . . . . . . . . . . . . . Hover . | . . . . . . . . . . . . . . . . . . . . . . . . . Flight . | . . . . . . . . . . . . . . . . . . . . . . . . . Utility 210 | 2 5 2 12 11 1 . 8 6 36 1 2 . . 39 15 3 5 . 36 1 3 8 . 14 Device 129 | 1 2 2 6 6 1 . 1 3 27 1 1 . . 30 3 1 3 . 24 1 3 3 . 10 Storage 8 | 1 1 . 1 . . . . . . . . . . . . . . . 1 . . 1 . 3 Processor 13 | . . . 1 . . . 5 . 2 . . . . 3 1 . . . 1 . . . . . Hackware 7 | . . . 1 . . . . . 1 . . . . 1 . . . . 3 . . 1 . . Protection 53 | . 2 . 3 5 . . 2 3 6 . 1 . . 5 11 2 2 . 7 . . 3 . 1 Artifact . | . . . . . . . . . . . . . . . . . . . . . . . . . Weapon 98 | 3 6 7 4 17 . . 2 3 7 . . . 2 9 11 . 2 . 8 1 4 2 1 9 Energy Gun 11 | 2 1 4 . 4 . . . . . . . . . . . . . . . . . . . . Energy Cannon 7 | . . . . . . . . . 1 . . . 1 . . . . . . 1 1 . . 3 Ballistic Gun 12 | 1 3 . 4 4 . . . . . . . . . . . . . . . . . . . . Ballistic Cannon 2 | . 2 . . . . . . . . . . . . . . . . . . . . . . . Launcher 13 | . . 1 . . . . . 1 1 . . . . 1 3 . . . 2 . 1 . . 3 Special Weapon . | . . . . . . . . . . . . . . . . . . . . . . . . . Impact Weapon 40 | . . . . 9 . . 1 2 5 . . . 1 6 6 . 2 . 4 . 2 2 . . Slashing Weapon 5 | . . 2 . . . . . . . . . . . . 2 . . . . . . . 1 . Piercing Weapon 8 | . . . . . . . 1 . . . . . . 2 . . . . 2 . . . . 3 Special Melee Weapon . | . . . . . . . . . . . . . . . . . . . . . . . . . Unidentified Prototypes 18 | . . . . 1 . . 5 . 1 . . . . 1 . 1 . . 4 . . 4 . 1 Corrupted Parts 3 | . . 2 . . . . . . . . . . . . 1 . . . . . . . . . System Corruption 23 | . . 17 . . . . . . . . . . . . 6 . . . . . . . . . Parts Lost 77 | . 1 4 1 7 . . . 6 6 . . . . 1 4 1 2 2 7 . 1 . 1 33 Power 12 | . . 1 . . . . . 1 2 . . . . . 1 . . . 1 . . . . 6 Propulsion 17 | . . 2 . . . . . 2 . . . . . . 1 1 . 2 . . . . . 9 Utility 32 | . . . 1 3 . . . 2 4 . . . . 1 2 . 2 . 3 . 1 . . 13 Weapon 16 | . 1 1 . 4 . . . 1 . . . . . . . . . . 3 . . . 1 5 Highest Loss Streak 12 | . 1 3 1 2 . . . 6 2 . . . . 1 2 1 2 2 1 . 1 . 1 12 To Critical Strikes 2 | . . . . . . . . . . . . . . . . 1 . . . . . . . 1 Average Slot Usage (%) 96 | . 99 99 99 99 100 100 99 99 96 100 100 100 100 96 97 99 92 95 92 100 99 98 100 82 Engine 2 | . 14 14 9 1 . . . . . . . . . . . 5 4 . . . . . . . Core 3 | . . . . 5 7 7 7 7 5 6 6 6 6 4 4 . . . . . . . . . Reactor 1 | . . . . . . . . . . . . . . . . . . 5 5 5 5 5 5 6 Treads 3 | . 27 12 9 . . . . . . . . . . . . . . . . . . . . . Leg 23 | . . 7 17 30 30 30 30 30 26 26 26 26 26 28 28 28 29 24 20 26 26 26 26 19 Device 11 | . 3 14 8 12 15 15 9 7 18 20 19 20 20 7 5 9 14 11 10 10 9 10 10 16 Storage 6 | . 14 14 9 7 7 7 7 7 6 6 6 6 6 5 5 5 5 5 5 5 5 5 5 4 Processor 9 | . . . . 3 . . 3 7 8 13 13 13 13 20 20 17 11 11 10 15 15 13 10 8 Hackware 2 | . . . . . . . . . . . . . . . . . . . 8 10 10 11 15 10 Protection 10 | . 9 . 17 13 15 15 15 13 7 6 6 6 6 7 11 12 12 17 13 10 10 10 10 3 Energy Gun 1 | . 7 17 . 5 . . . . . . . . . . . . . . . . . . . . Ballistic Gun 4 | . 17 4 26 12 . . . . . . . . . . . . . . . . . . . . Impact Weapon 11 | . . . . 3 23 23 17 15 19 20 20 20 16 16 16 11 4 11 9 5 9 8 8 1 Piercing Weapon 1 | . . . . . . . 4 5 . . . . . . . . . . 2 5 5 5 5 5 Peak Build Rating 135 | 7 12 13 33 52 52 53 61 69 77 71 73 72 73 94 92 94 97 94 128 125 124 124 121 135 Average Rating 71 | 5 10 11 27 44 51 52 57 65 71 70 71 72 72 86 87 92 91 89 107 123 118 118 120 114 On Entrance 70 | . 7 12 11 33 50 52 53 61 63 68 71 72 72 72 90 89 94 94 84 121 124 118 120 121 Naked Turns . | . . . . . . . . . . . . . . . . . . . . . . . . . Heaviest Build 91 | 15 36 32 53 57 57 57 57 58 67 58 61 58 63 69 76 76 75 70 76 74 77 71 71 91 Greatest Support 121 | 40 40 40 60 70 70 73 73 73 71 64 64 64 64 92 99 99 87 87 107 107 107 99 97 121 Greatest Overweight (x) 3 | 1 . 3 2 . . . . . 1 . . . . . . . . 1 1 . . . . 1 Average Overweight (x) . | . . 1 . . . . . . . . . . . . . . . . . . . . . . Largest Inventory Capacity 15 | 8 15 15 15 15 15 15 15 15 15 15 15 15 15 15 15 15 15 15 15 15 15 15 15 15 Average Capacity 14 | 7 14 15 15 15 15 15 15 15 15 15 15 15 15 15 15 15 15 15 15 15 15 15 15 15 Most Carried 15 | 8 15 15 15 15 15 15 15 15 15 13 15 15 15 15 15 15 15 14 15 15 15 15 15 15 Average Carried 14 | 5 12 13 14 13 14 15 14 14 14 11 14 15 14 14 14 14 14 14 14 14 14 14 14 12 Final Capacity 15 | 8 15 15 15 15 15 15 15 15 15 15 15 15 15 15 15 15 15 15 15 15 15 15 15 15 Final Carried 15 | 6 15 15 15 15 15 15 15 9 12 13 15 15 15 15 15 15 14 14 14 14 15 15 14 8 Class Distribution -------------------- 39% | Gladiator 16% | Mutant 9% | Tank 8% | Hacker-Gladiator 8% | Hacker-Mutant 6% | Commander-Gladiator 3% | Scavenger-Mutant 3% | Derelict-Mutant Dominant Class ---------------- Mutant | -10/Materials Mutant | -10/Subcaves Tank | -8/Materials Tank | -7/Factory Gladiator | -7/Lower Caves Gladiator | -7/Lower Caves Mutant | -7/Zion Derelict-Mutant | -6/Proximity Caves Gladiator | -6/Factory Gladiator | -6/Lower Caves Gladiator | -6/Lower Caves Gladiator | -6/Data Miner Gladiator | -5/Proximity Caves Gladiator | -5/Factory Commander-Gladiator | -5/Extension Commander-Gladiator | -5/Cetus Commander-Mutant | -5/Archives Commander-Mutant | -5/Hub_04(d) Scavenger-Mutant | -4/Factory Hacker-Mutant | -4/Upper Caves Hacker-Gladiator | -4/Upper Caves Hacker-Gladiator | -4/Zhirov Hacker-Gladiator | -3/Proximity Caves Hacker-Gladiator | -3/Research Resources | -11 -10 -10 -8 -7 -7 -7 -7 -6 -6 -6 -6 -6 -5 -5 -5 -5 -5 -5 -4 -4 -4 -4 -3 -3 ----------- Run | Yrd Mat Sub Mat Fac Low Low Zio Pro Fac Low Low Dat Pro Fac Ext Cet Arc Hub Fac Upp Upp Zhi Pro Res Matter Collected 6412 | 301 264 114 1214 792 78 10 100 120 621 20 34 . 46 502 508 66 82 3 527 65 130 140 . 675 Remotely . | . . . . . . . . . . . . . . . . . . . . . . . . . Salvage Created 14477 | 150 615 138 1363 1465 129 . . 221 2118 . 64 . . 1672 2043 55 198 . 1560 . 310 490 16 1870 Parts 503 | 12 31 6 60 69 2 . . 7 32 . 2 . . 57 56 1 16 . 52 . 10 7 5 78 Haulers Intercepted 17 | . 2 . 3 . . . . . 2 . . . . 3 2 . . . 4 . . . . 1 Recyclers Shooed 5 | . . . 1 . . . . . . . . . . 1 . . . . . . . . . 3 Parts Field Recycled . | . . . . . . . . . . . . . . . . . . . . . . . . . Retrieved Matter . | . . . . . . . . . . . . . . . . . . . . . . . . . Parts Self-Destructed 39 | . . . . . 1 . . 20 . . . . 4 . . . . . . . 4 5 5 . Prevented 9 | . . 2 . . 1 . . 4 . . . . . . . . . . . . 2 . . . Kills | -11 -10 -10 -8 -7 -7 -7 -7 -6 -6 -6 -6 -6 -5 -5 -5 -5 -5 -5 -4 -4 -4 -4 -3 -3 ------- Run | Yrd Mat Sub Mat Fac Low Low Zio Pro Fac Low Low Dat Pro Fac Ext Cet Arc Hub Fac Upp Upp Zhi Pro Res Combat Hostiles Destroyed 214 | . 12 4 21 22 3 . . 9 40 . 1 . . 20 26 1 . . 21 . 6 . 2 26 Melee 64 | . . . . 1 2 . . 3 18 . . . . 14 8 . . . 10 . . . 2 6 Guns 55 | . 11 3 21 20 . . . . . . . . . . . . . . . . . . . . Cannons 4 | . 1 . . . . . . . . . . . . . . . . . . . . . . 3 AOE 31 | . . 1 . 1 . . . 1 2 . . . . . 2 . . . 5 . 3 . . 16 Classes Destroyed 21 | 2 3 2 1 4 1 . . 1 1 . 1 . . 1 4 . . . . . . . . . Worker 12 | . . . . 3 . . . . . . . . . 1 . . . . . . . . . 8 Builder 7 | . . . . . . . . . . . . . . 2 1 . . . . . . . . 4 Tunneler 4 | 3 . . . . . . . . . . . . . . 1 . . . . . . . . . Hauler 17 | . 2 . 3 . . . . . 2 . . . . 3 2 . . . 4 . . . . 1 Recycler 15 | 1 . . 2 3 . . . . 1 . . . . 1 2 . . . 1 . . . . 4 Operator 8 | . . . . . . . . . . . . . . . 1 . 6 . . . . . . 1 Drone 3 | . . . . . . . . 1 . . . . . . . . . . . . . . 2 . Watcher 15 | . 1 . 1 . . . . . 1 . . . . 5 3 . . . 1 . . . . 3 Swarmer 32 | . . . . . 3 . . 6 6 . . . . . 1 . . . 5 . 4 . . 7 Saboteur 1 | . . . . . . . . . . . . . . . 1 . . . . . . . . . Grunt 96 | . 12 1 14 14 . . . 1 19 . . . . 11 10 . . . 4 . . . . 10 Brawler 2 | . . . . 1 . . . . . . . . . . . . . . . . . . . 1 Duelist 4 | . . . . 2 . . . . . . . . . . 1 . . . . . . . . 1 Protector 2 | . . . . . . . . . 1 . . . . . . . . . . . . . . 1 Sentry 30 | . . 1 6 3 . . . 1 4 . . . . 3 7 . . . 3 . . . . 2 Specialist 2 | . . . . . . . . . . . . . . . 2 . . . . . . . . . Hunter 12 | . . . 1 1 . . . . 4 . . . . . . . . . 2 . 2 . . 2 Programmer 25 | . . . . 1 . . . . 6 . . . . 6 3 . . . 7 . . . . 2 Behemoth 1 | . . . . . . . . . . . . . . . 1 . . . . . . . . . Cetus Guard 1 | . . . . . . . . . . . . . . . . 1 . . . . . . . . Subdweller 2 | . . 2 . . . . . . . . . . . . . . . . . . . . . . Packrat 1 | . . . . . 1 . . . . . . . . . . . . . . . . . . . Mutant 1 | . . . . . . . . . . . 1 . . . . . . . . . . . . . Best Kill Streak 16 | 3 4 2 4 7 2 . . 4 6 . 1 . . 5 6 1 4 . 6 . 4 . 2 16 Combat Bots Only 7 | . 4 2 4 7 2 . . 4 6 . 1 . . 5 6 1 . . 5 . 4 . 2 7 Max Kills in Single Turn 6 | 1 1 2 1 2 1 . . 1 2 . 1 . . 2 2 1 1 . 5 . 3 . 1 6 Gunslinging 1 | . . 1 . . . . . . . . . . . . . . . . . . . . . . Exploded 5 | . . 1 . 1 . . . 1 2 . . . . . 1 . . . 5 . 3 . . 4 Melee 2 | . . . . 1 1 . . 1 1 . . . . 1 1 . . . 1 . . . 1 2 Uniques/NPCs Destroyed . | . . . . . . . . . . . . . . . . . . . . . . . . . Combat | -11 -10 -10 -8 -7 -7 -7 -7 -6 -6 -6 -6 -6 -5 -5 -5 -5 -5 -5 -4 -4 -4 -4 -3 -3 -------- Run | Yrd Mat Sub Mat Fac Low Low Zio Pro Fac Low Low Dat Pro Fac Ext Cet Arc Hub Fac Upp Upp Zhi Pro Res Hostile Shots Fired 1718 | . 68 29 84 162 8 . . 174 344 . 6 . . 118 149 2 12 30 181 . 30 . 16 305 Missed 492 | . 13 7 23 54 2 . . 47 119 . 1 . . 27 40 1 8 13 49 . 10 . 12 66 Damage Taken 21498 | . 702 419 952 2014 88 . . 1501 3274 . 41 . . 2098 1868 111 127 383 2282 . 332 . 88 5218 Core 2692 | . 62 160 108 219 17 . . 163 302 . . . . 151 158 . . 46 181 . 50 . . 1075 Absorbed by Shields 1906 | . . . . . . . . . 128 . 12 . . 12 643 15 46 138 601 . . . . 311 Redirected to Shielding 212 | . . . . . . . . . . . . . . . . . . 9 91 . . . . 112 Ignored by Resistances 54 | . . . . . . . . . . . . . . 54 . . . . . . . . . . Regen/Repaired (Parts) 1626 | . 120 . 60 . . . . . 202 . . . . . . . . . 1133 . . . . 111 Core Remaining (%) 63 | 100 . 11 80 . . . . 43 . . . . 64 . . . . 64 . . . . 79 . Volleys Fired 306 | 7 46 17 73 69 . . . 5 11 . . . 25 . 3 . . . 1 1 6 . . 42 Largest 3 | 2 2 2 3 3 . . . 1 1 . . . 1 . 1 . . . 1 1 1 . . 1 Hottest 260 | 70 91 90 69 148 . . . 260 85 . . . 85 . 39 . . . 80 98 98 . . 98 Shots Fired 645 | 14 92 25 219 198 . . . 5 11 . . . 26 . 3 . . . 1 1 6 . . 44 Gun 528 | 14 78 19 219 198 . . . . . . . . . . . . . . . . . . . . Cannon 85 | . 14 . . . . . . . 9 . . . 26 . . . . . . 1 4 . . 31 Launcher 32 | . . 6 . . . . . 5 2 . . . . . 3 . . . 1 . 2 . . 13 Special . | . . . . . . . . . . . . . . . . . . . . . . . . . Kinetic 417 | 7 48 2 219 141 . . . . . . . . . . . . . . . . . . . . Thermal 127 | 4 44 . . 3 . . . 5 9 . . . 26 . . . . . . 1 4 . . 31 Explosive 27 | . . 6 . . . . . . 2 . . . . . 3 . . . 1 . 2 . . 13 Electromagnetic 74 | 3 . 17 . 54 . . . . . . . . . . . . . . . . . . . . Robot Hit Streak 29 | 7 12 29 13 18 . . . 2 2 . . . . . 3 . . . 1 . . . . 14 Robot Miss Streak 6 | 2 2 1 6 3 . . . 2 . . . . . . 2 . . . . . . . . 1 Penetration Max . | . . . . . . . . . . . . . . . . . . . . . . . . . Secondary Targets 12 | . 2 1 4 5 . . . . . . . . . . . . . . . . . . . . Max Gunslinging Chain 1 | . 1 1 1 1 . . . . . . . . . . . . . . . . . . . . Shots Hit Robots 951 | 9 68 22 143 153 4 . . 14 129 . 1 . 2 88 103 3 10 . 96 . 11 9 3 83 Core Hits 388 | 5 28 12 66 77 1 . . 8 22 . . . . 21 25 . 5 . 27 . 5 4 2 80 Critical Kills 10 | . . . . 1 . . . . 2 . . . . 4 . . . . 1 . . . 1 1 Critical Parts Destroyed 92 | . . . . 1 1 . . 1 38 . . . 1 17 17 1 . . 13 . 1 . . 1 Critical Strikes 122 | . 3 . . 2 1 . . 1 41 . . . 1 23 20 1 . . 19 . 1 . 1 8 Burn 2 | . 2 . . . . . . . . . . . . . . . . . . . . . . . Meltdown 1 | . . . . . . . . . . . . . . . . . . . . . . . . 1 Destroy 2 | . . . . 2 . . . . . . . . . . . . . . . . . . . . Blast 1 | . 1 . . . . . . . . . . . . . . . . . . . . . . . Smash 104 | . . . . . 1 . . 1 41 . . . 1 21 19 1 . . 14 . 1 . 1 3 Sever 2 | . . . . . . . . . . . . . . . 1 . . . 1 . . . . . Impale 10 | . . . . . . . . . . . . . . 2 . . . . 4 . . . . 4 Melee Attacks 1037 | . . 8 . 18 16 15 4 48 231 . 3 . 5 194 130 6 10 . 170 7 18 9 9 136 Impact 751 | . . . . 18 16 15 3 38 231 . 3 . 5 182 119 5 . . 85 3 9 . 4 15 Slashing 55 | . . 8 . . . . . . . . . . . . 11 1 10 . 17 . . . . 8 Piercing 231 | . . . . . . . 1 10 . . . . . 12 . . . . 68 4 9 9 5 113 Sneak Attacks 44 | . . . . 1 1 . . 1 4 . . . . 11 8 . 8 . 6 . . . . 4 Combat Hostiles 2 | . . . . . . . . 1 . . . . . . 1 . . . . . . . . . Follow-up Attacks 179 | . . . . . . . . 8 53 . . . 2 22 44 3 . . 29 . 4 . 1 13 Damage Inflicted 39053 | 142 947 617 2160 2637 262 . . 769 6674 . 39 . 83 4342 5406 127 994 5 4517 . 863 735 116 7618 Guns 5510 | 115 793 263 2148 2191 . . . . . . . . . . . . . . . . . . . . Cannons 1505 | . 149 . . . . . . . . . . . . . . . . . . . . . . 1356 Explosions 6770 | 27 . 354 . 154 . . . 185 537 . . . . . 732 . . . 395 . 277 . . 4109 Melee 25150 | . . . . 228 262 . . 584 6137 . 39 . 83 4340 4665 127 994 . 4101 . 586 735 116 2153 Ramming 118 | . 5 . 12 64 . . . . . . . . . 2 9 . . 5 21 . . . . . Kinetic 4344 | 74 476 31 2148 1615 . . . . . . . . . . . . . . . . . . . . Thermal 2229 | 27 466 . . 195 . . . 185 . . . . . . . . . . . . . . . 1356 Explosive 6404 | . . 354 . . . . . . 537 . . . . . 732 . . . 395 . 277 . . 4109 Electromagnetic 808 | 41 . 232 . 535 . . . . . . . . . . . . . . . . . . . . Impact 18610 | . . . . 228 262 . . 559 6137 . 39 . 83 3989 4298 78 . . 2126 . 379 . 46 386 Slashing 1912 | . . . . . . . . . . . . . . . 367 49 994 . 464 . . . . 38 Piercing 4628 | . . . . . . . . 25 . . . . . 351 . . . . 1511 . 207 735 70 1729 Highest Corruption 26 | . . 17 . 5 . . . . 5 5 5 5 5 . 9 9 9 3 6 . . 7 7 26 Average Corruption 5 | . . 11 . 4 . . . . 4 5 5 5 5 . 4 9 6 2 3 . . 7 7 11 Corruption Purged 14 | . . . . 5 . . . . . . . . . . . . 9 . . . . . . . Corruption Blocked 10 | . . . . . . . . . . . . . . 10 . . . . . . . . . . Effects 190 | . . . . 16 . . . . 35 6 13 3 9 . 8 12 7 . 18 . . 1 15 47 Message Errors 48 | . . . . 3 . . . . 10 2 2 2 . . . 3 2 . 5 . . . 5 14 Matter Fused 41 | . . . . 3 . . . . 7 1 2 . 3 . 3 1 2 . 3 . . . 4 12 Heat Flow Errors 28 | . . . . . . . . . 3 . 4 . 2 . 3 5 . . 4 . . . . 7 Energy Discharges 23 | . . . . 2 . . . . 5 . 2 . . . . 2 2 . 3 . . . 2 5 Parts Rejected 5 | . . . . 1 . . . . 2 . . . . . . . . . . . . . . 2 Parts Fused 1 | . . . . . . . . . . . . . . . . . . . . . . . 1 . Data Loss (minor) 24 | . . . . 2 . . . . 7 1 2 . 2 . 2 . 1 . 2 . . . 1 4 Data Loss (major) 11 | . . . . 1 . . . . 1 2 1 1 1 . . 1 . . 1 . . 1 . 1 Misfires 3 | . . . . . . . . . . . . . 1 . . . . . . . . . . 2 Alerts 3 | . . . . 1 . . . . . . . . . . . . . . . . . . 2 . Weapon Failures 3 | . . . . 3 . . . . . . . . . . . . . . . . . . . . Overload Shots . | . . . . . . . . . . . . . . . . . . . . . . . . . Overflow Damage 8026 | . . . . 82 86 . . 157 2625 . 17 . 53 1644 1244 58 275 . 747 . 274 182 9 573 Projectiles 214 | . . . . . . . . . . . . . . . . . . . . . . . . 214 Explosions 396 | . . . . . . . . . . . . . . . 55 . . . . . 103 . . 238 Melee 7416 | . . . . 82 86 . . 157 2625 . 17 . 53 1644 1189 58 275 . 747 . 171 182 9 121 Knockbacks 70 | . 5 . . 2 . . . 2 25 . . . . 13 8 . . . 11 . 4 . . . Impact 63 | . . . . 2 . . . 2 25 . . . . 12 7 . . . 11 . 4 . . . Kinetic 5 | . 5 . . . . . . . . . . . . . . . . . . . . . . . Secondary 2 | . . . . . . . . . . . . . . 1 1 . . . . . . . . . Self-Inflicted Damage 246 | . . . . 33 . . . . 19 . . . . . . . . . . . . . . 194 Shots 7 | . . . . 2 . . . . 1 . . . . . . . . . . . . . . 4 Rammed 2 | . 2 . . . . . . . . . . . . . . . . . . . . . . . Targets Rammed 21 | . 2 . 4 11 . . . . . . . . . 1 1 . . 1 1 . . . . . Kicked 19 | . . . 4 11 . . . . . . . . . 1 1 . . 1 1 . . . . . Crushed . | . . . . . . . . . . . . . . . . . . . . . . . . . Highest Temperature 457 | 18 249 17 457 198 . . . 200 270 . 262 . 331 17 280 233 . 2 171 46 184 . . 235 Average Temperature 90 | 8 92 12 126 58 . . . 135 54 . 108 . 80 6 104 100 . 2 60 27 83 . . 62 Received Heat Transfer 4619 | . 426 144 549 504 . . . 276 934 . 18 . . 441 402 . 6 77 341 . . . 24 477 Effects 10 | . 1 . 7 . . . . 1 . . . . . . 1 . . . . . . . . . Shutdowns 2 | . . . 2 . . . . . . . . . . . . . . . . . . . . . Energy Bleed 5 | . 1 . 3 . . . . . . . . . . . 1 . . . . . . . . . Interference 1 | . . . . . . . . 1 . . . . . . . . . . . . . . . . Damage (minor) 2 | . . . 2 . . . . . . . . . . . . . . . . . . . . . Siege Activations . | . . . . . . . . . . . . . . . . . . . . . . . . . Robots Corrupted 73 | . . . . 1 1 . . 5 21 . 1 . . 11 20 1 . . 8 . 3 . . 1 Combat Hostiles 59 | . . . . . 1 . . 5 20 . 1 . . 6 16 1 . . 6 . 3 . . . Parts Fried 92 | . . 1 . 3 1 . . 5 27 . 1 . . 18 20 1 . . 11 . 2 . . 2 Impact Corruptions 215 | . . . . 3 4 . . 9 81 . 1 . 3 38 43 1 . . 25 . 5 . . 2 Robots Melted 1 | . . . . . . . . . . . . . . . . . . . . . . . . 1 Combat Hostiles 1 | . . . . . . . . . . . . . . . . . . . . . . . . 1 Parts Melted 9 | . 3 . . 1 . . . . . . . . . . . . . . 2 . . . . 3 Heat Transferred 2106 | . 1406 . . 300 . . . 400 . . . . . . . . . . . . . . . . Parts Sabotaged 2 | . . . . . . . . . . . . . . . 2 . . . . . . . . . Parts Stolen . | . . . . . . . . . . . . . . . . . . . . . . . . . Parts Stripped . | . . . . . . . . . . . . . . . . . . . . . . . . . Power Chain Reactions 5 | 1 . . . 2 . . . . . . . . . . . . . . . . . . . 2 Alert | -11 -10 -10 -8 -7 -7 -7 -7 -6 -6 -6 -6 -6 -5 -5 -5 -5 -5 -5 -4 -4 -4 -4 -3 -3 ------- Run | Yrd Mat Sub Mat Fac Low Low Zio Pro Fac Low Low Dat Pro Fac Ext Cet Arc Hub Fac Upp Upp Zhi Pro Res Peak Influence 1399 | 20 197 . 239 371 . . . . 1293 . . . . 378 1399 925 591 452 560 . . . . 760 Initial 783 | . 13 . . 108 . . . . 637 . . . . . 120 783 369 206 233 . . . . 261 Average 351 | 8 48 . 96 243 . . . . 829 . . . . 137 580 905 561 282 275 . . . . 329 Maximum Alert Level 4 | . . . 1 1 . . . . 4 . . . . 1 4 3 2 2 2 . . . . 3 Low Security (%) 41 | 100 100 . 90 35 . . . . . . . . . 76 8 . . . 17 . . . . 24 Level 1 26 | . . . 9 64 . . . . . . . . . 23 27 . 4 76 65 . . . . 44 Level 2 12 | . . . . . . . . . 17 . . . . . 26 . 95 23 17 . . . . 24 Level 3 17 | . . . . . . . . . 72 . . . . . 31 100 . . . . . . . 6 Level 4 2 | . . . . . . . . . 10 . . . . . 6 . . . . . . . . . Level 5 . | . . . . . . . . . . . . . . . . . . . . . . . . . High Security . | . . . . . . . . . . . . . . . . . . . . . . . . . Max Security . | . . . . . . . . . . . . . . . . . . . . . . . . . Squads Dispatched 61 | . 2 . 4 8 . . . 2 13 . . . . 7 6 . . 3 12 . . . . 4 Investigation 15 | . 1 . . 1 . . . . 6 . . . . 3 1 . . 1 2 . . . . . Extermination 17 | . . . . 2 . . . . 4 . . . . 3 . . . . 6 . . . . 2 Reinforcement 19 | . 1 . 3 5 . . . . 2 . . . . 1 3 . . 1 2 . . . . 1 Assault 8 | . . . . . . . . 2 1 . . . . . 2 . . . 2 . . . . 1 Garrison 2 | . . . 1 . . . . . . . . . . . . . . 1 . . . . . . Intercept . | . . . . . . . . . . . . . . . . . . . . . . . . . Searches Triggered 1 | . . . . . . . . . 1 . . . . . . . . . . . . . . . Data Miner Redirects 6 | . . . . . . . . . . . . . . 1 4 . . . . . . . . 1 Construction Impeded 1 | . . . . . . . . . . . . . . . . . . 1 . . . . . . Haulers Reinforced 2 | . . . . . . . . . . . . . . . . . . . 1 . . . . 1 Active Scanning Responses . | . . . . . . . . . . . . . . . . . . . . . . . . . Cargo Convoy Interrupts 1 | . . . . 1 . . . . . . . . . . . . . . . . . . . . Stealth | -11 -10 -10 -8 -7 -7 -7 -7 -6 -6 -6 -6 -6 -5 -5 -5 -5 -5 -5 -4 -4 -4 -4 -3 -3 --------- Run | Yrd Mat Sub Mat Fac Low Low Zio Pro Fac Low Low Dat Pro Fac Ext Cet Arc Hub Fac Upp Upp Zhi Pro Res Distress Signals 20 | . 2 . 4 2 . . . . . . . . . . 3 1 . 2 1 . . . . 5 Communications Jammed 32 | . . . . . . . . . . . . . . . . . . . . . . . . 32 Distress Signals 32 | . . . . . . . . . . . . . . . . . . . . . . . . 32 Times Spotted 429 | . 24 5 39 41 4 . . 21 63 . 1 . 3 29 65 5 9 9 35 . 6 . 13 57 Peak Tracking Total 9 | . 5 3 6 6 3 . . 6 6 . 1 . 2 5 7 5 2 9 5 . 2 . 8 8 Tactical Retreats 32 | . . . 3 1 1 . . 1 6 . . . . 1 7 . . . 2 . 2 . 4 4 Traps | -11 -10 -10 -8 -7 -7 -7 -7 -6 -6 -6 -6 -6 -5 -5 -5 -5 -5 -5 -4 -4 -4 -4 -3 -3 ------- Run | Yrd Mat Sub Mat Fac Low Low Zio Pro Fac Low Low Dat Pro Fac Ext Cet Arc Hub Fac Upp Upp Zhi Pro Res Traps Triggered 16 | . 1 . 1 2 . . . . 2 . . . . 7 1 . . . 1 . . . . 1 Indirectly . | . . . . . . . . . . . . . . . . . . . . . . . . . Trap Hack Attempts . | . . . . . . . . . . . . . . . . . . . . . . . . . Triggered . | . . . . . . . . . . . . . . . . . . . . . . . . . Disarmed . | . . . . . . . . . . . . . . . . . . . . . . . . . Reprogrammed . | . . . . . . . . . . . . . . . . . . . . . . . . . Reused . | . . . . . . . . . . . . . . . . . . . . . . . . . Traps Extracted . | . . . . . . . . . . . . . . . . . . . . . . . . . Installed . | . . . . . . . . . . . . . . . . . . . . . . . . . Triggered 7 | . . . . 4 . . . 1 1 . . . 1 . . . . . . . . . . . Machines | -11 -10 -10 -8 -7 -7 -7 -7 -6 -6 -6 -6 -6 -5 -5 -5 -5 -5 -5 -4 -4 -4 -4 -3 -3 ---------- Run | Yrd Mat Sub Mat Fac Low Low Zio Pro Fac Low Low Dat Pro Fac Ext Cet Arc Hub Fac Upp Upp Zhi Pro Res Machines Disabled 13 | . . 1 . . . . . . 2 . 1 . . . 2 . 1 2 3 . . . . 1 Max in Single Turn 1 | . . 1 . . . . . . 1 . 1 . . . . . . . 1 . . . . 1 Garrison Access 9 | . . . 1 1 . . . . 2 . . . . 3 . . . . 1 . . . . 1 Network Hub 1 | . . . . . . . . . . . . . . . . . . 1 . . . . . . Machines Repaired . | . . . . . . . . . . . . . . . . . . . . . . . . . Machines Dismantled . | . . . . . . . . . . . . . . . . . . . . . . . . . Machines Sabotaged 1 | . . . . . . . . . . . . . . . . . . 1 . . . . . . Overloaded Fab Kills . | . . . . . . . . . . . . . . . . . . . . . . . . . Hacking | -11 -10 -10 -8 -7 -7 -7 -7 -6 -6 -6 -6 -6 -5 -5 -5 -5 -5 -5 -4 -4 -4 -4 -3 -3 --------- Run | Yrd Mat Sub Mat Fac Low Low Zio Pro Fac Low Low Dat Pro Fac Ext Cet Arc Hub Fac Upp Upp Zhi Pro Res Machines Accessed 94 | . 8 1 10 5 . . 1 . 13 . . 4 . 17 7 1 . 1 14 1 . 4 . 7 Terminals 50 | . 7 . 5 2 . . . . 5 . . . . 9 7 1 . 1 8 . . . . 5 Fabricators 7 | . . . . . . . . . 4 . . . . 1 . . . . 2 . . . . . Repair Stations 13 | . 1 . 2 1 . . . . 2 . . . . 3 . . . . 3 . . . . 1 Recycling Units 3 | . . . 2 1 . . . . . . . . . . . . . . . . . . . . Scanalyzers 2 | . . . . . . . . . . . . . . 1 . . . . 1 . . . . . Garrison Access 8 | . . . 1 1 . . . . 2 . . . . 3 . . . . . . . . . 1 Total Hacks 312 | . 38 9 34 9 . . 3 . 29 . . 30 . 36 14 3 . 1 54 1 . 17 . 34 Successful 181 | . 25 9 20 6 . . 3 . 12 . . 30 . 14 4 . . 1 23 1 . 17 . 16 Failed 130 | . 12 . 14 3 . . . . 17 . . . . 22 10 3 . . 31 . . . . 18 Catastrophic 25 | . . . 1 1 . . . . 5 . . . . 5 2 1 . . 9 . . . . 1 Database Lockouts 1 | . 1 . . . . . . . . . . . . . . . . . . . . . . . Manual 126 | . 22 . 22 2 . . . . 9 . . . . 17 10 1 . 1 17 . . . . 25 Terminals 174 | . 34 . 22 4 . . . . 11 . . . . 23 14 3 . 1 33 . . . . 29 Fabricators 17 | . . . . . . . . . 11 . . . . 1 . . . . 5 . . . . . Repair Stations 37 | . 4 . 5 2 . . . . 3 . . . . 5 . . . . 14 . . . . 4 Recycling Units 8 | . . . 6 2 . . . . . . . . . . . . . . . . . . . . Scanalyzers 4 | . . . . . . . . . . . . . . 2 . . . . 2 . . . . . Garrison Access 12 | . . . 1 1 . . . . 4 . . . . 5 . . . . . . . . . 1 Terminal Hacks 99 | . 10 9 2 1 . . 3 . 3 . . 30 . 6 3 . . . 7 1 . 17 . 7 Record 24 | . . 8 . . . . . . . . . 11 . . . . . . . . . 5 . . Part Schematic 25 | . . . . . . . 3 . . . . 13 . . . . . . . . . 4 . 5 Robot Schematic 3 | . . . . . . . . . . . . 3 . . . . . . . . . . . . Robot Analysis 5 | . 1 . . . . . . . . . . . . . . . . . . . . 4 . . Prototype ID Bank 8 | . 1 . . . . . . . . . . 3 . . . . . . . . . 4 . . Open Door 2 | . . . . . . . . . . . . . . 1 . . . . . 1 . . . . Branch Access Points 4 | . 1 . . . . . . . 1 . . . . 1 . . . . . . . . . 1 Machine Index 1 | . . . . . . . . . . . . . . . . . . . 1 . . . . . Terminal Index 1 | . 1 . . . . . . . . . . . . . . . . . . . . . . . Fabricator Index 1 | . . . . . . . . . . . . . . . . . . . 1 . . . . . Alert Level 4 | . 1 . . . . . . . . . . . . 2 1 . . . . . . . . . Unreport Threat 11 | . 2 . 1 . . . . . 2 . . . . 2 1 . . . 3 . . . . . Locate Traps 7 | . 2 . 1 1 . . . . . . . . . . 1 . . . 2 . . . . . Recall Extermination 1 | . . . . . . . . . . . . . . . . . . . . . . . . 1 Zone Layout 1 | . 1 . . . . . . . . . . . . . . . . . . . . . . . Derelict Proto ID Bank 1 | . . 1 . . . . . . . . . . . . . . . . . . . . . . Fabricator Hacks 7 | . . . . . . . . . 4 . . . . . . . . . 3 . . . . . Network Status 1 | . . . . . . . . . 1 . . . . . . . . . . . . . . . Load Schematic 4 | . . . . . . . . . 2 . . . . . . . . . 2 . . . . . Build 2 | . . . . . . . . . 1 . . . . . . . . . 1 . . . . . Repair Station Hacks 20 | . 4 . 3 1 . . . . 2 . . . . . . . . . 8 . . . . 2 Scan Component 11 | . 2 . 2 1 . . . . 1 . . . . . . . . . 4 . . . . 1 Repair 9 | . 2 . 1 . . . . . 1 . . . . . . . . . 4 . . . . 1 Recycling Unit Hacks 3 | . . . 2 1 . . . . . . . . . . . . . . . . . . . . Retrieve Components 3 | . . . 2 1 . . . . . . . . . . . . . . . . . . . . Scanalyzer 2 | . . . . . . . . . . . . . . 2 . . . . . . . . . . Insert Component 1 | . . . . . . . . . . . . . . 1 . . . . . . . . . . Analyze 1 | . . . . . . . . . . . . . . 1 . . . . . . . . . . Garrison Access Hacks 4 | . . . 1 1 . . . . . . . . . 1 . . . . . . . . . 1 Seal Access 4 | . . . 1 1 . . . . . . . . . 1 . . . . . . . . . 1 Unauthorized Hacks 46 | . 11 . 12 2 . . . . 3 . . . . 5 1 . . 1 5 . . . . 6 Terminals 38 | . 11 . 10 2 . . . . 1 . . . . 2 1 . . 1 4 . . . . 6 Track 1 | . . . 1 . . . . . . . . . . . . . . . . . . . . . Assimilate 2 | . . . . . . . . . 1 . . . . . . . . . . . . . . 1 Botnet 21 | . 5 . 4 1 . . . . . . . . . 2 1 . . . 4 . . . . 4 Operators 3 | . 1 . . 1 . . . . . . . . . . . . . . . . . . . 1 Skim 10 | . 5 . 5 . . . . . . . . . . . . . . . . . . . . . Sabotage 1 | . . . . . . . . . . . . . . . . . . 1 . . . . . . Fabricators 2 | . . . . . . . . . . . . . . 1 . . . . 1 . . . . . Recompile 2 | . . . . . . . . . . . . . . 1 . . . . 1 . . . . . Repair Stations . | . . . . . . . . . . . . . . . . . . . . . . . . . Recycling Units 2 | . . . 2 . . . . . . . . . . . . . . . . . . . . . Reject 2 | . . . 2 . . . . . . . . . . . . . . . . . . . . . Scanalyzers . | . . . . . . . . . . . . . . . . . . . . . . . . . Garrison Access 4 | . . . . . . . . . 2 . . . . 2 . . . . . . . . . . Jam 4 | . . . . . . . . . 2 . . . . 2 . . . . . . . . . . Data Cores Recovered 1 | . . . . . . . . . . . . . . . . . . . 1 . . . . . Used . | . . . . . . . . . . . . . . . . . . . . . . . . . Hacking Detections 71 | . 8 . 9 3 . . . . 12 . . . . 14 7 1 . . 11 . . . . 6 Full Trace Events 4 | . . . . . . . . . 3 . . . . . . . . . 1 . . . . . Feedback Events . | . . . . . . . . . . . . . . . . . . . . . . . . . Feedback Blocked . | . . . . . . . . . . . . . . . . . . . . . . . . . Robot Schematics Acquired 6 | . . . . . . . 3 . . . . 3 . . . . . . . . . . . . Robots Built . | . . . . . . . . . . . . . . . . . . . . . . . . . Authchips . | . . . . . . . . . . . . . . . . . . . . . . . . . Time . | . . . . . . . . . . . . . . . . . . . . . . . . . Total Robot Build Rating . | . . . . . . . . . . . . . . . . . . . . . . . . . Part Schematics Acquired 37 | . . . . . . . 16 . . . . 13 . . . . . . . . . 4 . 4 Parts Built 4 | . . . . . . . . . 2 . . . . . . . . . 2 . . . . . Authchips 1 | . . . . . . . . . . . . . . . . . . . 1 . . . . . Time 134 | . . . . . . . . . 95 . . . . . . . . . 39 . . . . . Total Part Build Rating 24 | . . . . . . . . . 10 . . . . . . . . . 14 . . . . . Parts Repaired 9 | . 2 . 1 . . . . . 1 . . . . . . . . . 4 . . . . 1 Time 344 | . 52 . 32 . . . . . 44 . . . . . . . . . 196 . . . . 20 Parts Recycled . | . . . . . . . . . . . . . . . . . . . . . . . . . Recycled Matter . | . . . . . . . . . . . . . . . . . . . . . . . . . Retrieved Matter . | . . . . . . . . . . . . . . . . . . . . . . . . . Retrieved Components 21 | . . . 11 10 . . . . . . . . . . . . . . . . . . . . Parts Scanalyzed 1 | . . . . . . . . . . . . . . 1 . . . . . . . . . . Part Schematics Acquired . | . . . . . . . . . . . . . . . . . . . . . . . . . Parts Damaged . | . . . . . . . . . . . . . . . . . . . . . . . . . Bothacking | -11 -10 -10 -8 -7 -7 -7 -7 -6 -6 -6 -6 -6 -5 -5 -5 -5 -5 -5 -4 -4 -4 -4 -3 -3 ------------ Run | Yrd Mat Sub Mat Fac Low Low Zio Pro Fac Low Low Dat Pro Fac Ext Cet Arc Hub Fac Upp Upp Zhi Pro Res Used RIF Installer . | . . . . . . . . . . . . . . . . . . . . . . . . . Robots Hacked . | . . . . . . . . . . . . . . . . . . . . . . . . . Non-combat . | . . . . . . . . . . . . . . . . . . . . . . . . . Combat . | . . . . . . . . . . . . . . . . . . . . . . . . . Robot Hacks Applied . | . . . . . . . . . . . . . . . . . . . . . . . . . Relay Couplers Released 3 | . . . . . . . . . . . . . . . . . . . 3 . . . . . Machine Destruction 3 | . . . . . . . . . . . . . . . . . . . 3 . . . . . Fabnet Peak Effective % . | . . . . . . . . . . . . . . . . . . . . . . . . . Robots Rewired 22 | . . . . . . . . . . . 3 . . . 19 . . . . . . . . . Allies Hacked 3 | . . . . . . . . . . . . . . . 3 . . . . . . . . . Hacks Repelled . | . . . . . . . . . . . . . . . . . . . . . . . . . Allies | -11 -10 -10 -8 -7 -7 -7 -7 -6 -6 -6 -6 -6 -5 -5 -5 -5 -5 -5 -4 -4 -4 -4 -3 -3 -------- Run | Yrd Mat Sub Mat Fac Low Low Zio Pro Fac Low Low Dat Pro Fac Ext Cet Arc Hub Fac Upp Upp Zhi Pro Res Total Allies 34 | . . . . . . . . . 1 . 3 . . . 24 5 . . . . . . . 1 Largest Group 14 | . . . . . . . . . 1 . 3 3 3 3 14 14 13 12 5 . . . . 1 Highest-Rated Group 862 | . . . . . . . . . 26 . 93 93 93 93 523 862 733 713 340 . . . . 45 Highest-Rated Ally 159 | . . . . . . . . . 26 . 31 31 31 31 159 153 96 96 96 . . . . 45 Total Orders 11 | . . . . . . . . . . . . . . 2 5 . . 2 2 . . . . . STAY 6 | . . . . . . . . . . . . . . 1 3 . . 1 1 . . . . . FOLLOW 5 | . . . . . . . . . . . . . . 1 2 . . 1 1 . . . . . Ally Attacks 428 | . . . . . . . . . . . . . 13 18 199 42 42 68 46 . . . . . Total Damage 10444 | . . . . . . . . . . . . . 167 170 4672 725 1048 1981 1681 . . . . . Kills 64 | . . . . . . . . . . . . . 3 4 33 4 4 7 9 . . . . . Allies Corrupted 1 | . . . . . . . . . . . . . . . . . . 1 . . . . . . Allies Melted 1 | . . . . . . . . 1 . . . . . . . . . . . . . . . . Intel | -11 -10 -10 -8 -7 -7 -7 -7 -6 -6 -6 -6 -6 -5 -5 -5 -5 -5 -5 -4 -4 -4 -4 -3 -3 ------- Run | Yrd Mat Sub Mat Fac Low Low Zio Pro Fac Low Low Dat Pro Fac Ext Cet Arc Hub Fac Upp Upp Zhi Pro Res Robot Analysis Total 5 | . 1 . . . . . . . . . . . . . . . . . . . . 4 . . Derelict Logs Recovered 8 | . . 1 . . 1 . 1 . . 1 . . 1 . . . . . . 2 1 . . . Drone Launches . | . . . . . . . . . . . . . . . . . . . . . . . . . Drone Recoveries . | . . . . . . . . . . . . . . . . . . . . . . . . . Exploration | -11 -10 -10 -8 -7 -7 -7 -7 -6 -6 -6 -6 -6 -5 -5 -5 -5 -5 -5 -4 -4 -4 -4 -3 -3 ------------- Run | Yrd Mat Sub Mat Fac Low Low Zio Pro Fac Low Low Dat Pro Fac Ext Cet Arc Hub Fac Upp Upp Zhi Pro Res Turns Passed 24264 | 146 1980 528 1583 1543 624 542 1178 1005 2990 350 434 97 478 2842 1788 256 296 63 2328 306 544 240 390 1733 Spaces Moved 14513 | 69 602 298 793 891 458 401 897 636 1871 290 334 78 303 1703 949 145 206 37 1136 283 469 194 391 1079 Core 4 | 4 . . . . . . . . . . . . . . . . . . . . . . . . Treads 1031 | 65 602 119 245 . . . . . . . . . . . . . . . . . . . . . Legs 13299 | . . . 548 891 458 401 897 636 1871 290 334 78 303 1703 949 145 206 37 1136 283 469 194 391 1079 Wheels 179 | . . 179 . . . . . . . . . . . . . . . . . . . . . . Hover . | . . . . . . . . . . . . . . . . . . . . . . . . . Flight . | . . . . . . . . . . . . . . . . . . . . . . . . . Fastest Speed 50 | 50 160 125 126 125 125 125 127 120 112 120 120 120 120 120 120 120 120 120 102 102 102 96 96 90 Average Speed 122 | 154 160 143 138 125 125 126 127 124 119 120 120 120 120 120 120 120 120 146 134 102 102 98 96 102 Slowest Speed 270 | 160 160 260 270 125 125 127 127 127 190 120 120 120 120 120 120 120 120 190 190 102 102 102 96 190 Overloaded Moves . | . . . . . . . . . . . . . . . . . . . . . . . . . Propulsion Burnouts . | . . . . . . . . . . . . . . . . . . . . . . . . . Robots Hopped 2 | . . . . . . . . . . . . . . . 2 . . . . . . . . . Cave-ins Triggered . | . . . . . . . . . . . . . . . . . . . . . . . . . Exploration Rate (%) 53 | 7 94 25 60 26 69 66 80 72 55 55 45 69 52 52 82 48 85 8 35 46 60 62 54 27 Regions Visited 24 Branch Regions 17 Pre-discovered Areas 10 | . 1 . 3 . . . 1 . . . . 1 . . . . . . . . 1 3 . . Known Exits Taken 18 | . 1 . 1 . 1 . . . 1 1 1 1 1 1 1 1 1 1 1 1 1 1 1 . Unknown Exits Taken 6 | 1 . 1 . 1 . 1 1 1 . . . . . . . . . . . . . . . . Scrap Searched 22 | . . . . . 3 2 4 1 . 2 2 . 1 . . . . . . 3 3 . 1 . Spaces Dug 261 | . . . . 9 6 10 . 8 53 . . . 24 56 4 . . . 31 5 6 . 3 46 Terrain Destroyed 561 | 4 . 35 . 15 6 10 . 28 53 . . . 28 56 27 . . . 38 5 27 . 3 226 Melee 220 | . . . . 9 6 10 . 8 44 . . . 2 56 4 . . . 31 4 3 . 3 40 Projectile 51 | . . . . . . . . . 9 . . . 26 . . . . . . 1 4 . . 11 AOE 290 | 4 . 35 . 6 . . . 20 . . . . . . 23 . . . 7 . 20 . . 175 Terrain Rammed . | . . . . . . . . . . . . . . . . . . . . . . . . . Walls Destroyed . | . . . . . . . . . . . . . . . . . . . . . . . . . Machines Disabled . | . . . . . . . . . . . . . . . . . . . . . . . . . Actions | -11 -10 -10 -8 -7 -7 -7 -7 -6 -6 -6 -6 -6 -5 -5 -5 -5 -5 -5 -4 -4 -4 -4 -3 -3 --------- Run | Yrd Mat Sub Mat Fac Low Low Zio Pro Fac Low Low Dat Pro Fac Ext Cet Arc Hub Fac Upp Upp Zhi Pro Res Total 19147 | 93 1535 354 1154 1160 485 416 933 782 2369 292 362 81 385 2226 1428 222 239 45 1702 291 505 233 396 1459 Wait 2619 | . 828 11 221 110 12 2 5 88 240 . . 4 51 286 122 67 11 8 368 . 9 2 . 174 Move 14487 | 68 601 297 792 891 457 400 896 635 1870 289 333 77 302 1702 944 144 205 37 1135 282 468 193 390 1079 Hop 2 | . . . . . . . . . . . . . . . 2 . . . . . . . . . Pick Up 165 | 10 25 4 17 19 2 1 6 3 23 2 4 . 1 18 5 2 1 . 9 1 2 5 . 5 Fast Attach 67 | 3 2 . 3 4 . . 6 . 4 . . . . 7 10 . 3 . 10 . . 2 . 13 Attach 84 | 4 3 4 5 10 . . . 6 11 1 . . . 4 5 1 3 . 8 . 2 2 1 14 Detach 20 | . 2 . 1 . . . 4 . 3 . . . . 2 . . 2 . . . 1 2 . 3 Swap 262 | 1 7 12 19 19 1 1 4 10 41 . 2 . 2 49 23 3 2 . 38 2 6 10 . 10 Drop 155 | . 19 1 19 13 2 2 9 6 26 . 2 . 1 20 10 2 2 . 11 1 . 8 . 1 Fire 306 | 7 46 17 73 69 . . . 5 11 . . . 25 . 3 . . . 1 1 6 . . 42 Melee 715 | . . 8 . 15 11 10 3 29 140 . 2 . 3 137 81 3 10 . 121 4 11 9 5 113 Ram . | . . . . . . . . . . . . . . . . . . . . . . . . . Kick 17 | . . . 4 10 . . . . . . . . . 1 1 . . . 1 . . . . . Crush 2 | . 2 . . . . . . . . . . . . . . . . . . . . . . . Escape Stasis 5 | . . . . . . . . . . . . . . . . . . . . . . . . 5 Rewire 241 | . . . . . . . . . . . 19 . . . 222 . . . . . . . . . Trap . | . . . . . . . . . . . . . . . . . . . . . . . . . Miscellaneous . | . . . . . . . . . . . . . . . . . . . . . . . . . Route ------- -11/Scrapyard -10/Materials (discovered 5 exits: *Mat x3 / *Min / *Sub) -10/Subcaves -8/Materials (discovered 3 exits: *Fac x3) -7/Factory (discovered 3 exits: *Fac / Sto / [*Low]) -7/Lower Caves -7/Lower Caves -7/Zion -6/Proximity Caves -6/Factory (discovered 4 exits: *Fac x2 / *Low x2) -6/Lower Caves -6/Lower Caves -6/Data Miner -5/Proximity Caves -5/Factory (discovered 6 exits: *Fac x2 / *Upp x2 / *Ext x2) -5/Extension (discovered 2 exits: *Fac / *Cet) -5/Cetus -5/Archives (discovered 3 exits: *Fac / *Hub x2) -5/Hub_04(d) -4/Factory (discovered 3 exits: *Res x2 / *Upp) -4/Upper Caves -4/Upper Caves (discovered 2 exits: *Res / *Zhi) -4/Zhirov -3/Proximity Caves -3/Research (discovered 4 exits: Res / Arm / Qua x2) History --------- Turn | Location | Event 38 | -11/Scrapyard | Discovered new exit (range 15) 147 | -11/Scrapyard | Entered Materials 236 | -10/Materials | Central database locked down 302 | -10/Materials | Build established: Mutant 505 | -10/Materials | Repaired Lgt. Treads 533 | -10/Materials | Repaired Assault Rifle 966 | -10/Materials | Identified exit to Materials 997 | -10/Materials | Discovered exit to Materials (range 16) 1016 | -10/Materials | Learned Storage emergency access door positions 1055 | -10/Materials | Identified exit to Mines 1055 | -10/Materials | Identified exit to Subcaves 1082 | -10/Materials | Learned location of 2 exits from Materials 1099 | -10/Materials | Learned 4 Subcaves zone layouts 1113 | -10/Materials | Learned Storage non-interactive machine intel 1129 | -10/Materials | Learned Storage stockpile data 1156 | -10/Materials | Learned location of Recycling (-7) 1191 | -10/Materials | Loaded intel: 1 repair station location 2127 | -10/Materials | Entered Subcaves 2220 | -10/Subcaves | Core integrity fell below 50% 2248 | -10/Subcaves | Lost 3 parts (1p1n1w) 2314 | -10/Subcaves | Core integrity fell below 20% 2438 | -10/Subcaves | Visited 4L-MR0's lab 2450 | -10/Subcaves | Found Powered Cannon 2501 | -10/Subcaves | Shifting Twisted Machinery released Spk. Treads 2503 | -10/Subcaves | Shifting Twisted Machinery released Spk. Treads 2538 | -10/Subcaves | Shifting Twisted Machinery released Sub. Optics 2569 | -10/Subcaves | Learned Materials emergency access door positions 2627 | -10/Subcaves | Discovered new exit (range 11) 2655 | -10/Subcaves | System corruption reached 10% 2655 | -10/Subcaves | Entered Materials 2655 | -8/Materials | Evolved 4 slots: Propulsion x1, Utility x2, Weapon x1 2656 | -8/Materials | Identified exit to Factory 2718 | -8/Materials | Garrison activated, responded to threat 2955 | -8/Materials | Build established: Tank 3257 | -8/Materials | Discovered exit to Factory (range 4) 3349 | -8/Materials | Repaired Autogun 3619 | -8/Materials | Learned Storage machine intel 3661 | -8/Materials | Learned location of Extension (-5) 3716 | -8/Materials | Learned location of 1 exit from Lower Caves 3727 | -8/Materials | Learned Factory stockpile data 3729 | -8/Materials | Learned 2 Lower Caves zone layouts 3750 | -8/Materials | Learned Storage trap positions 4238 | -8/Materials | Entered Factory 4238 | -7/Factory | Evolved 2 slots: Propulsion x1, Utility x1 4239 | -7/Factory | Identified exit to Storage 4427 | -7/Factory | Noticed a derelict Sapper rigging charges 4563 | -7/Factory | Build established: Mutant 4693 | -7/Factory | Destroyed 7 combat bots 4957 | -7/Factory | Discovered new exit (range 11) 5109 | -7/Factory | Cargo convoy interrupted 5160 | -7/Factory | Discovered new exit (range 5) 5262 | -7/Factory | Build established: Tank 5781 | -7/Factory | Entered Lower Caves 5782 | -7/Lower Caves | Identified exit to Lower Caves 5989 | -7/Lower Caves | Build established: Gladiator 6356 | -7/Lower Caves | Learned 8 Factory zone layouts 6405 | -7/Lower Caves | Entered another Lower Caves area 6855 | -7/Lower Caves | Encountered a Warlord checkpoint 6900 | -7/Lower Caves | Discovered new exit (range 7) 6947 | -7/Lower Caves | Entered Zion 7372 | -7/Zion | Learned Factory terminal intel 7395 | -7/Zion | Received a hallucinogenic algorithm 7451 | -7/Zion | Found Prototype Processor 7451 | -7/Zion | Identified Exp. Armor Integrity Analyzer 7462 | -7/Zion | Found Prototype Processor 7462 | -7/Zion | Identified Exp. Terrain Scan Processor 7466 | -7/Zion | Found Prototype Processor 7466 | -7/Zion | Identified Exp. Target Analyzer 7480 | -7/Zion | Found Prototype Processor 7480 | -7/Zion | Identified Exp. Core Analyzer 7488 | -7/Zion | Found Prototype Hackware 7674 | -7/Zion | Acquired unknown access codes intercepted by a Zionite 7727 | -7/Zion | Build established: Mutant 7970 | -7/Zion | Discovered new exit (range 15) 8125 | -7/Zion | Entered Proximity Caves 8158 | -6/Proximity Caves | Derelict sapper outpost attacked 8217 | -6/Proximity Caves | Encountered a Derelict sapper outpost 8235 | -6/Proximity Caves | Spotter reported a threat 8405 | -6/Proximity Caves | Spotter reported a threat 8471 | -6/Proximity Caves | Spotter reported a threat 8516 | -6/Proximity Caves | Spotter reported a threat 8527 | -6/Proximity Caves | Build established: Derelict-Mutant 8948 | -6/Proximity Caves | Attracted the attention of an 0b10 checkpoint 8984 | -6/Proximity Caves | Core integrity fell below 50% 9024 | -6/Proximity Caves | Lost 6 parts (1p2n2u1w) 9051 | -6/Proximity Caves | Discovered new exit (range 9) 9130 | -6/Proximity Caves | Entered Factory 9130 | -6/Factory | Evolved 2 slots: Utility x2 9132 | -6/Factory | Loaded intel: 26 terminal locations 9246 | -6/Factory | Build established: Gladiator 9480 | -6/Factory | Search patrols dispatched 9562 | -6/Factory | Discovered new exit (range 11) 9826 | -6/Factory | Spotted B-75 Beast 9864 | -6/Factory | Repaired Imp. Medium Armor Plating 9922 | -6/Factory | Discovered new exit (range 6) 10519 | -6/Factory | Identified Exp. System Shield 10536 | -6/Factory | Identified exit to Lower Caves 10644 | -6/Factory | Discovered new exit (range 13) 11659 | -6/Factory | Fabricated Adv. Signal Interpreter? 11962 | -6/Factory | First assault squad dispatched 12120 | -6/Factory | Entered Lower Caves 12144 | -6/Lower Caves | Learned 8 Factory zone layouts 12331 | -6/Lower Caves | Discovered new exit (range 14) 12346 | -6/Lower Caves | Identified exit to Lower Caves 12470 | -6/Lower Caves | Entered another Lower Caves area 12622 | -6/Lower Caves | Attacked by a delusional Derelict stockpiling Unaware 12888 | -6/Lower Caves | Discovered new exit (range 10) 12900 | -6/Lower Caves | Identified exit to Data Miner 12904 | -6/Lower Caves | Entered Data Miner 12904 | -6/Data Miner | Accompanied by 3 allies 12904 | -6/Data Miner | Discovered new exit (range 6) 12927 | -6/Data Miner | Met Data Miner 12950 | -6/Data Miner | Learned location of Section 7 (-3) 12950 | -6/Data Miner | Acquired the access code to Warlord's prototype stash 12969 | -6/Data Miner | Received God Mode back door access code from Data Miner 12996 | -6/Data Miner | Identified exit to Proximity Caves 13001 | -6/Data Miner | Entered Proximity Caves 13001 | -5/Proximity Caves | Accompanied by 3 allies 13376 | -5/Proximity Caves | Learned 8 Factory zone layouts 13462 | -5/Proximity Caves | Discovered new exit (range 10) 13471 | -5/Proximity Caves | Identified exit to Factory 13479 | -5/Proximity Caves | Entered Factory 13479 | -5/Factory | Accompanied by 3 allies 13479 | -5/Factory | Evolved 2 slots: Propulsion x1, Utility x1 13480 | -5/Factory | Identified exit to Factory 13795 | -5/Factory | Incoming investigation squad redirected 13947 | -5/Factory | Identified exit to Upper Caves 13947 | -5/Factory | Identified exit to Extension 13970 | -5/Factory | Found Imp. Powered Armor 14079 | -5/Factory | Lost 3 allies 15887 | -5/Factory | Discovered exit to Factory (range 16) 16321 | -5/Factory | Entered Extension 16380 | -5/Extension | Rescued a captive Derelict 16381 | -5/Extension | Rescued a captive Derelict 16832 | -5/Extension | Rescued A7 17211 | -5/Extension | Build established: Commander-Gladiator 17338 | -5/Extension | Incoming investigation squad redirected 17382 | -5/Extension | Spotted B-75 Beast 17392 | -5/Extension | Spotted B-75 Beast 17396 | -5/Extension | Destroyed B-75 Beast 17410 | -5/Extension | Allies destroyed B-75 Beast 17446 | -5/Extension | Disrupted transfer network 17614 | -5/Extension | Rescued a captive Derelict 17622 | -5/Extension | Rescued a captive Derelict 17821 | -5/Extension | First assault squad dispatched 17837 | -5/Extension | Incoming assault squad redirected 17842 | -5/Extension | Incoming assault squad redirected 17875 | -5/Extension | Incoming assault squad redirected 17938 | -5/Extension | Lost 5 allies 18063 | -5/Extension | Discovered exit to Factory (range 10) 18064 | -5/Extension | Discovered new exit (range 6) 18070 | -5/Extension | Identified exit to Cetus 18109 | -5/Extension | Entered Cetus 18109 | -5/Cetus | Accompanied by 10 allies (A7) 18114 | -5/Cetus | Acquired a Cetus Manufacturing Module code from A7 18125 | -5/Cetus | Spotted Cetus Guard 18125 | -5/Cetus | Spotted Cetus Guard 18127 | -5/Cetus | Spotted Cetus Guard 18127 | -5/Cetus | Spotted Cetus Guard 18138 | -5/Cetus | Allies destroyed Cetus Guard 18138 | -5/Cetus | Allies destroyed Cetus Guard 18146 | -5/Cetus | Destroyed Cetus Guard 18147 | -5/Cetus | Allies destroyed Cetus Guard 18201 | -5/Cetus | Started Cetus Manufacturing Module 18226 | -5/Cetus | Manufactured an Enhanced Grunt 18251 | -5/Cetus | Manufactured an Enhanced Grunt 18276 | -5/Cetus | Manufactured an Enhanced Grunt 18277 | -5/Cetus | Discovered new exit (range 16) 18293 | -5/Cetus | Identified exit to Archives 18301 | -5/Cetus | Manufactured an Enhanced Grunt 18326 | -5/Cetus | Manufactured an Enhanced Grunt 18365 | -5/Cetus | Entered Archives 18365 | -5/Archives | Accompanied by 14 allies (A7) 18394 | -5/Archives | Discovered new exit (range 16) 18432 | -5/Archives | Discovered exit to Factory (range 16) 18606 | -5/Archives | Discovered new exit (range 14) 18649 | -5/Archives | Identified exit to Hub_04(d) 18661 | -5/Archives | Entered Hub_04(d) 18661 | -5/Hub_04(d) | Accompanied by 12 allies 18673 | -5/Hub_04(d) | Discovered exit to Factory (range 15) 18685 | -5/Hub_04(d) | Network Hub disabled 18698 | -5/Hub_04(d) | Spotted Lightning 18701 | -5/Hub_04(d) | Spotted Lightning 18703 | -5/Hub_04(d) | Spotted Lightning 18708 | -5/Hub_04(d) | Allies destroyed Lightning 18723 | -5/Hub_04(d) | Garrison activated, responded to threat 18724 | -5/Hub_04(d) | Allies destroyed Lightning 18724 | -5/Hub_04(d) | Entered Factory 18724 | -4/Factory | Accompanied by 5 allies 18724 | -4/Factory | Evolved 2 slots: Utility x2 18755 | -4/Factory | Lost 4 allies 18972 | -4/Factory | Discovered new exit (range 5) 18980 | -4/Factory | Identified exit to Research 19149 | -4/Factory | Build established: Scavenger-Mutant 19382 | -4/Factory | Repaired Carbon-fiber Leg 19433 | -4/Factory | Repaired Flexi-carbon Leg 19439 | -4/Factory | Found Prototype Launcher 19439 | -4/Factory | Identified Mni. Smartbomb Launcher 19751 | -4/Factory | Repaired Centrium Medium Armor Plating 19790 | -4/Factory | Discovered new exit (range 10) 20077 | -4/Factory | Fabricated Myomer Leg (x2) 20217 | -4/Factory | Discovered exit to Research (range 13) 20394 | -4/Factory | Repaired Centrium Medium Armor Plating 20632 | -4/Factory | Build established: Hacker-Mutant 20974 | -4/Factory | First assault squad dispatched 21051 | -4/Factory | Identified exit to Upper Caves 21052 | -4/Factory | Entered Upper Caves 21072 | -4/Upper Caves | Learned location of 2 exits from Research 21281 | -4/Upper Caves | Learned location of 1 exit from Research 21346 | -4/Upper Caves | Discovered new exit (range 14) 21357 | -4/Upper Caves | Identified exit to Upper Caves 21358 | -4/Upper Caves | Entered another Upper Caves area 21386 | -4/Upper Caves | Discovered exit to Research (range 13) 21541 | -4/Upper Caves | Encountered a Warlord checkpoint 21684 | -4/Upper Caves | Build established: Hacker-Gladiator 21733 | -4/Upper Caves | Learned location of Testing (-2) 21821 | -4/Upper Caves | Discovered new exit (range 15) 21866 | -4/Upper Caves | Identified exit to Zhirov 21902 | -4/Upper Caves | Entered Zhirov 21902 | -4/Zhirov | Discovered new exit (range 3) 21921 | -4/Zhirov | Met Zhirov 21939 | -4/Zhirov | Learned location of Quarantine (-3) 21939 | -4/Zhirov | Learned location of Command (-1) 21959 | -4/Zhirov | Zhirov requested help retrieving the SGEMP Prototype 21974 | -4/Zhirov | Found Alien Artifact 21974 | -4/Zhirov | Identified Integrated Reactor 21974 | -4/Zhirov | Installed Integrated Reactor, increased core energy generation (+10) 22085 | -4/Zhirov | Found Alien Artifact 22141 | -4/Zhirov | Identified exit to Proximity Caves 22142 | -4/Zhirov | Entered Proximity Caves 22145 | -3/Proximity Caves | Spotter reported a threat 22525 | -3/Proximity Caves | Discovered exit to Research (range 7) 22532 | -3/Proximity Caves | Entered Research 22532 | -3/Research | Evolved 2 slots: Power x1, Utility x1 22533 | -3/Research | Identified exit to Quarantine 22533 | -3/Research | Identified exit to Research 22533 | -3/Research | Identified exit to Armory 23089 | -3/Research | Lost 11 parts (2p2n4u3w) 23360 | -3/Research | Build established: Hacker-Mutant 23395 | -3/Research | Spotted B-86 Titan 23603 | -3/Research | Repaired Adv. VSS Leg 23735 | -3/Research | Destroyed 7 combat bots 23782 | -3/Research | First assault squad dispatched 23798 | -3/Research | Incoming assault squad redirected 23868 | -3/Research | Build established: Hacker-Gladiator 23960 | -3/Research | System corruption reached 10% 23990 | -3/Research | Core integrity fell below 50% 24016 | -3/Research | Attached Powered Cannon, gained temporary slot: Power 24053 | -3/Research | Lost 12 parts (2p4n5u1w) 24175 | -3/Research | Destroyed 7 combat bots 24235 | -3/Research | Build established: Hacker-Mutant 24257 | -3/Research | Core integrity fell below 20% 24265 | -3/Research | Self-destructed Last Messages --------------- 24231_ System corrupted: Substantial component data lost. 24233_ Destroyed Unknown Hover Unit. 24235_ Destroyed Adv. Heat Sink. 24236_ Destroyed Unknown Hover Unit. 24238_ Destroyed Unknown Reactor. 24242_ Powered Cannon destroyed. 24242_ Temporary Power slot lost. 24242_ Lgt. Antimatter Reactor destroyed. 24245_ P-80 Master suffers critical hit (Impale). 24252_ R-10 Processor collects Prototype Energy Cannon. 24252_ Particle Reactor destroyed. 24255_ R-10 Processor collects Prototype Energy Cannon. 24255_ P-80 Master suffers critical hit (Impale). 24258_ R-10 Processor collects Prototype Flight Unit. 24259_ Adv. Myomer Leg destroyed. 24259_ Myomer Leg destroyed. 24260_ U-05 Engineer builds a Wall. 24262_ 8G94,Q,3P4F6B:G:O<3I06BUU 24262_ Adv. Hacking Suite destroyed. 24265_ U-05 Engineer builds a Wall. Map ----- +----------------------------------------------------+ | ?????????????????????????????????????????????????? | | ?????????????????????????????????????????????????? | | ???????????????????????????????????o?????????????? | | ?????????????????????????????????????????????????? | | ?????????????????????????????????????????????????? | | ?????????????????????????????????????????????????? | | ?????????????????????????????????????????????????? | | ?????????????????????????????????????????????????? | | ?????????????????????????????????????????????????? | | ?????????????????????????????????????????????????? | | ?????????????????????????????????????????????????? | | ????? ????????????????????????????????????????? | | ???? ????????????????????????????????????????? | | ????# ????????????????????????????????????????? | | ????# ????????????????????????????????????????? | | ????# ????????????????????????????????????????? | | ????# ????????????????????????????????????????? | | ???## ????????????????????????????????????????? | | ???# #???????????????????????????????????????? | | ???#T #???????????????????????????????????????? | | ????# #???????????????????????????????????????? | | ????# #???????????????????????????????????????? | | ###?# ###############?????????#???????????????? | | # ?# ######## #???????????????? | | # # pA kw #???????????????? | | # k p@u #???????????????? | | # =% ###########???????????????? | | # ## ### ####+#######?????????????????????? | | ###% # #] #?? ???????????????????????????? | | # # #??! ???????????????????????????? | | # # +? ""??????????????????????????? | | # # # #? ""??????????????????????????? | | # # # ?????????????????????????? | | # # # ?????????????????????????? | | ### # # #########????????????????????????? | | ?# # # #????????????????????????????????? | | ?## #????????????????????????????????? | | ?## # +????????????????????????????????? | | ?# !* # #????????????????????????????????? | | ?# =* # #????????????????????????????????? | | ?# # | =|# # #????????????????????????????????? | | ?# # ##+#?#????????????????????????????????? | | ?## # ???????????????????????????? | | ??## *# ???????????????????????????? | | ???# %# """ """?????????????????????????????? | | ???## # """ ""??????????????????????????????? | | ????# % # """ ????????????????????????????????? | | ????# # ??????????????????????????????????? | | ????# #? ????????????????????????????????? | | ????# #? """ ????????????????????????????????? | +----------------------------------------------------+ Best States ------------- Heat Dissipation 65 Energy Generation 53 Energy Capacity 810 Matter Stores 300 Matter Capacity 600 Sight Range 16 Robot Scan Range 16 Terrain Scan Density 10 Jamming Range 14 Corruption Containment 12 Corruption Block 15 Armor Coverage 850 Resistance: TH 15 Resistance: EM 20 Core Shielding 40 Propulsion Shielding 66 Utility Shielding 66 Melee Speed Boost 20 Evasion (%) 67 Targeting Accuracy 8 Melee Accuracy 8 Core Analysis 8 Armor Integrity Analysis 40 Recoil Reduction 3 Particle Charging 25 Offensive Hacking 28 Defensive Hacking 16 Authchip Count 2 Item Schematics ----------------- Launcher Guidance Computer | -7/Zion | Archive Fission Core | -7/Zion | Archive Flexi-carbon Leg | -7/Zion | Archive Imp. System Shield | -7/Zion | Archive Weapon Cycler | -7/Zion | Archive Tesla Rifle | -7/Zion | Archive Adv. Signal Interpreter | -7/Zion | Archive Armor Integrity Analyzer | -7/Zion | Archive Plasma Rifle | -7/Zion | Archive Imp. Field Recycling Unit | -7/Zion | Archive Focal Shield | -7/Zion | Archive Imp. Salvage Targeting Computer | -7/Zion | Archive Imp. Arc Projector | -7/Zion | Archive Battle Cannon | -7/Zion | Free Hvy. Beamcaster | -7/Zion | Free Phasing Sabre | -7/Zion | Free Combat Drone Bay | -6/Data Miner | Free Lgt. Regenerative Plating | -6/Data Miner | Free Enh. Flexi-carbon Leg | -6/Data Miner | Free Prc. Matter Filter | -6/Data Miner | Free Cld. Plasma Rifle | -6/Data Miner | Free Field Propulsion Array | -6/Data Miner | Free Adv. Transmission Jammer | -6/Data Miner | Free Matter Neutralizer | -6/Data Miner | Free Adv. Cooling System | -6/Data Miner | Free Myomer Leg | -6/Data Miner | Free Biometal Medium Treads | -6/Data Miner | Free Adv. Thermal Generator | -6/Data Miner | Free Adv. Component Analysis Suite | -6/Data Miner | Free Assault Drone Bay | -4/Zhirov | Free Exp. Heat Sink | -4/Zhirov | Free Exp. Optical Array | -4/Zhirov | Free Imp. Arc Thrower | -4/Zhirov | Free Nanoactuators | -3/Research | Hacked Quantum Capacitor | -3/Research | Hacked Exp. Weapon Shielding | -3/Research | Hacked Hvy. Armored Exoskeleton | -3/Research | Hacked Robot Schematics ------------------ S-27 Virus | -7/Zion | Archive G-47 Trooper | -7/Zion | Archive H-77 Assassin | -7/Zion | Archive B-48 Gladiator | -6/Data Miner | Free R-10 Processor | -6/Data Miner | Free P-60 Hacker | -6/Data Miner | Free Fabricated ------------ Adv. Signal Interpreter | x2 | -6/Factory Myomer Leg | x2 | -4/Factory | Authchip Alien Tech Used ----------------- Integrated Reactor Achievements -------------- None Challenges ------------ None Game ------ Seed MobileArmageddonTube Manual? 0 Play Time 04:06:39 Cumulative 313.4 hours Start 2025.01.07 @ 18:06:12 End 2025.01.11 @ 15:45:39 Sessions 16 Manual Loads 0 Difficulty Rogue Special Mode None Game No. 202 Rogue 202 Adventurer 0 Explorer 0 Win Type - Total 6 Types 6/0/0/0/0/0/0/0/0 Lore% 63 Gallery% 78 Achievement% 66 Wizard Run 0 Options --------- Layout 0 ASCII 0 Keyboard 1 Movement Numpad Keybinds 0 Fullscreen 2 Font 18/SmallcapsGlow Map View 76x50 Zoom Use 0% Tactical HUD 1 Map Filters NONE Filters NONE Steam 1 RUN: 0b38e419-2ee8-47de-a4f2-a4f9b26fe686